bitfinex-derivatives/quotes_BTCF0:USTF0_20240829
["timestamp","ask_amount","ask_price","bid_price","bid_amount"]
[1724960429993,0.68157,59682.0,59681.0,1.547237]
[1724960431487,0.31407,59682.0,59681.0,1.547237]
[1724960432682,0.00025144,59687.0,59686.0,0.08375]
[1724960432897,0.00025144,59687.0,59686.0,0.80455]
[1724960433193,0.02160107,59702.0,59686.0,1.82344]
[1724960433399,0.083728,59703.0,59701.0,0.3608]
[1724960433591,0.1128,59712.0,59701.0,0.3608]
[1724960433592,0.083728,59702.0,59701.0,0.3608]
[1724960433894,0.083721,59707.0,59701.0,0.3608]
[1724960434101,0.38269958,59711.0,59701.0,0.3608]
[1724960434297,0.38269958,59711.0,59707.0,0.3608]
[1724960434298,0.02189958,59711.0,59707.0,0.3608]
[1724960434490,0.1128,59712.0,59707.0,0.3608]
[1724960434693,0.13458018,59712.0,59707.0,0.3608]
[1724960435702,0.13458018,59712.0,59711.0,0.3608]
[1724960435703,0.02178018,59712.0,59711.0,0.3608]
[1724960435908,0.083698,59724.0,59711.0,0.3608]
[1724960436203,0.1153,59726.0,59719.0,0.3608]
[1724960436805,0.3608,59722.0,59712.0,0.00025122]
[1724960437194,0.13785188,59726.0,59718.0,0.3608]
[1724960437392,0.3608,59724.0,59718.0,0.3608]
[1724960437702,0.3608,59719.0,59712.0,0.00025122]
[1724960437896,0.083708,59716.0,59712.0,0.00025122]
[1724960438288,0.3608,59730.0,59713.0,0.36]
[1724960438490,0.083691,59729.0,59718.0,0.3608]
[1724960438689,0.3608,59725.0,59712.0,0.00025122]
[1724960439897,0.3608,59725.0,59718.0,0.3608]
[1724960440304,0.3608,59725.0,59722.0,0.0837]
[1724960440500,0.3608,59725.0,59718.0,0.3608]
[1724960441000,0.02255188,59726.0,59724.0,0.3608]
[1724960441207,0.1187,59735.0,59724.0,0.3608]
[1724960441404,0.14045926,59735.0,59724.0,0.3608]
[1724960442402,0.02175926,59735.0,59724.0,0.3608]
[1724960442606,0.44448,59736.0,59724.0,0.3608]
[1724960442607,0.3608,59736.0,59724.0,0.3608]
[1724960442798,0.3608,59736.0,59724.0,0.36105122]
[1724960443494,0.38272783,59736.0,59724.0,0.36105122]
[1724960443695,0.3608,59731.0,59724.0,0.36105122]
[1724960443898,0.3608,59726.0,59724.0,0.00025122]
[1724960444096,0.083707,59717.0,59711.0,0.3608]
[1724960444298,0.3608,59726.0,59711.0,0.3608]
[1724960444299,0.36,59721.0,59711.0,0.3608]
[1724960444497,0.0837,59722.0,59716.0,0.3608]
[1724960444697,0.3608,59723.0,59716.0,0.3608]
[1724960445094,0.083709,59716.0,59706.0,0.6821]
[1724960445497,0.08371,59715.0,59706.0,0.6821]
[1724960446104,0.36105047,59717.0,59706.0,0.3608]
[1724960446293,0.083715,59712.0,59706.0,0.3608]
[1724960446495,0.083721,59708.0,59705.0,0.00025122]
[1724960446701,0.561216,59711.0,59705.0,0.00025122]
[1724960447002,0.083718,59709.0,59705.0,0.00025122]
[1724960447206,0.083722,59706.0,59705.0,0.00025122]
[1724960447409,0.083721,59708.0,59705.0,0.00025122]
[1724960447706,0.083722,59706.0,59705.0,0.00025122]
[1724960448697,0.3608,59706.0,59696.0,0.3213]
[1724960448899,0.3608,59706.0,59686.0,0.76585]
[1724960449105,0.3608,59706.0,59686.0,0.44455]
[1724960449314,0.0212508,59711.0,59703.0,0.3608]
[1724960449617,0.083721,59707.0,59701.0,0.00025122]
[1724960449811,0.083722,59706.0,59701.0,0.00025122]
[1724960450010,0.083719,59708.0,59701.0,0.00025122]
[1724960450302,0.083728,59702.0,59701.0,0.00025122]
[1724960451501,0.083728,59702.0,59688.0,0.3608]
[1724960451502,0.36,59702.0,59688.0,0.3608]
[1724960451703,0.083746,59689.0,59688.0,0.3608]
[1724960458017,0.083747,59688.0,59683.0,0.00025122]
[1724960458204,0.198847,59688.0,59683.0,0.00025122]
[1724960458513,0.083753,59684.0,59683.0,0.00025122]
[1724960460816,0.083753,59684.0,59678.0,0.3608]
[1724960460817,0.08376,59679.0,59678.0,0.3608]
[1724960461624,0.16752,59679.0,59678.0,0.3608]
[1724960462818,0.19486782,59679.0,59678.0,0.3608]
[1724960463119,0.02734782,59679.0,59678.0,0.3608]
[1724960463313,0.199956,59683.0,59678.0,0.3608]
[1724960464115,0.1162,59683.0,59678.0,0.3608]
[1724960464318,0.199955,59683.0,59678.0,0.3608]
[1724960465111,0.22767522,59683.0,59678.0,0.3608]
[1724960466521,0.02772022,59683.0,59678.0,0.3608]
[1724960466713,0.083751,59686.0,59678.0,0.3608]
[1724960467017,0.11201189,59686.0,59683.0,0.3608]
[1724960467314,0.36,59695.0,59683.0,0.3608]
[1724960467315,0.7208,59701.0,59685.0,0.083752]
[1724960467516,0.7208,59701.0,59689.0,0.3608]
[1724960467517,0.083734,59698.0,59689.0,0.3608]
[1724960467716,0.0277101,59694.0,59691.0,0.083743]
[1724960467910,0.0277101,59694.0,59693.0,0.08374]
[1724960468717,0.1178,59710.0,59693.0,1.10256]
[1724960468920,0.1455816,59710.0,59709.0,0.3608]
[1724960469817,0.0277816,59710.0,59709.0,0.3608]
[1724960470019,0.00025122,59715.0,59709.0,0.3608]
[1724960470316,0.00025122,59715.0,59704.0,0.00025122]
[1724960470317,0.083724,59705.0,59704.0,0.00025122]
[1724960470516,0.443724,59705.0,59704.0,0.00025122]
[1724960470722,0.083733,59698.0,59697.0,0.3608]
[1724960471022,0.083743,59691.0,59690.0,0.3608]
[1724960471522,0.083743,59691.0,59683.0,0.6821]
[1724960471523,0.3608,59695.0,59683.0,0.6821]
[1724960471823,0.36,59693.0,59685.0,0.00025122]
[1724960472319,0.083746,59690.0,59685.0,0.00025122]
[1724960472522,0.01257518,59694.0,59689.0,0.3608]
[1724960473129,0.00025122,59696.0,59689.0,0.3608]
[1724960473517,0.00025122,59696.0,59694.0,0.3608]
[1724960473816,0.00025122,59696.0,59695.0,0.083738]
[1724960474428,0.00025122,59696.0,59695.0,1.186298]
[1724960474614,0.02697551,59697.0,59696.0,0.083736]
[1724960474918,0.01257437,59712.0,59699.0,0.083732]
[1724960475121,0.01257437,59712.0,59700.0,0.3608]
[1724960475422,0.38806783,59707.0,59700.0,0.3608]
[1724960475629,0.02726783,59707.0,59700.0,0.3608]
[1724960475818,0.00025122,59709.0,59705.0,0.3608]
[1724960478731,0.00025122,59709.0,59708.0,0.443719]
[1724960478929,0.00025122,59709.0,59708.0,0.946159]
[1724960479123,0.00025122,59709.0,59708.0,1.546159]
[1724960480124,0.02735703,59715.0,59714.0,0.083711]
[1724960480329,0.083688,59731.0,59720.0,0.083701]
[1724960480526,0.36,59729.0,59724.0,0.3608]
[1724960480833,0.083696,59725.0,59724.0,0.3608]
[1724960481031,0.1156,59728.0,59720.0,0.3608]
[1724960481227,0.00025122,59725.0,59720.0,0.3608]
[1724960481432,0.00025122,59725.0,59723.0,0.3608]
[1724960481728,0.00025122,59725.0,59723.0,0.86312]
[1724960482432,0.00025122,59725.0,59723.0,0.3608]
[1724960483330,0.11265122,59725.0,59723.0,0.3608]
[1724960484426,0.083697,59724.0,59723.0,0.3608]
[1724960484626,0.11265122,59725.0,59714.0,0.00025122]
[1724960485632,0.083704,59719.0,59714.0,0.00025122]
[1724960485931,0.08371,59715.0,59714.0,0.00025122]
[1724960486535,0.58611,59715.0,59714.0,0.00025122]
[1724960487924,0.58611,59715.0,59707.0,0.3608]
[1724960487925,0.083719,59708.0,59707.0,0.3608]
[1724960488125,0.083719,59708.0,59701.0,0.3608]
[1724960488431,0.1163,59707.0,59701.0,0.3608]
[1724960488620,0.083728,59702.0,59701.0,0.3608]
[1724960490834,0.00025122,59707.0,59705.0,0.083724]
[1724960491036,0.00025122,59707.0,59706.0,0.444522]
[1724960491227,0.2339,59722.0,59708.0,0.083719]
[1724960491425,0.2339,59722.0,59712.0,0.3608]
[1724960492636,0.083703,59720.0,59712.0,0.3608]
[1724960493038,0.0125701,59721.0,59712.0,0.3608]
[1724960493228,0.1195,59720.0,59712.0,0.3608]
[1724960494538,0.083708,59717.0,59712.0,0.3608]
[1724960494837,0.083704,59719.0,59712.0,0.3608]
[1724960498036,0.1195,59720.0,59712.0,0.3608]
[1724960499333,0.1195,59720.0,59717.0,0.3608]
[1724960502041,0.02793509,59722.0,59721.0,0.083701]
[1724960502336,0.00025122,59723.0,59721.0,0.083701]
[1724960502337,0.00025122,59723.0,59722.0,0.0837]
[1724960502539,0.00025122,59723.0,59722.0,0.58602]
[1724960502736,0.00025122,59723.0,59722.0,1.18602]
[1724960503129,0.0125672,59743.0,59722.0,1.10232]
[1724960503330,0.3733672,59749.0,59739.0,0.3608]
[1724960503537,0.3608,59749.0,59739.0,0.3608]
[1724960505837,0.38813275,59749.0,59739.0,0.3608]
[1724960506036,0.36,59740.0,59724.0,0.3608]
[1724960506249,0.083694,59726.0,59724.0,0.3608]
[1724960506543,0.083694,59726.0,59716.0,0.3608]
[1724960506544,0.3608,59725.0,59716.0,0.3608]
[1724960506739,0.0837,59723.0,59716.0,0.3608]
[1724960506943,0.3608,59717.0,59710.0,0.1156]
[1724960507133,0.00025122,59722.0,59711.0,0.36105122]
[1724960507333,0.00025122,59722.0,59713.0,0.083712]
[1724960507535,0.00025122,59722.0,59714.0,0.08371]
[1724960507739,0.00025122,59722.0,59718.0,0.3608]
[1724960508445,0.00025122,59722.0,59718.0,0.7216]
[1724960508647,0.02839298,59722.0,59719.0,0.1173]
[1724960508944,0.00025122,59722.0,59719.0,0.1173]
[1724960509130,0.00025122,59722.0,59721.0,0.083701]
[1724960509336,0.00025122,59722.0,59721.0,0.683701]
[1724960509535,0.00025122,59722.0,59721.0,1.186021]
[1724960510346,0.02730689,59722.0,59721.0,0.586021]
[1724960510536,0.02730689,59722.0,59721.0,1.186021]
[1724960511141,0.01256851,59738.0,59721.0,1.10232]
[1724960511339,0.083675,59740.0,59730.0,0.3608]
[1724960511633,0.3608,59737.0,59724.0,0.3608]
[1724960511834,0.01256495,59741.0,59730.0,0.3608]
[1724960512041,0.3608,59742.0,59729.0,0.3608]
[1724960512245,0.00025047,59741.0,59730.0,0.00025122]
[1724960512450,0.00025047,59741.0,59732.0,0.3608]
[1724960512639,0.00025047,59741.0,59731.0,0.3608]
[1724960512839,0.00025047,59741.0,59731.0,0.444487]
[1724960514240,0.00025047,59741.0,59731.0,0.561287]
[1724960516141,0.00025047,59741.0,59740.0,0.3608]
[1724960516448,0.00025047,59741.0,59740.0,0.86296]
[1724960516750,0.00025047,59741.0,59740.0,0.3608]
[1724960516941,0.36105047,59741.0,59731.0,0.4776]
[1724960517343,0.00025047,59741.0,59740.0,0.3608]
[1724960517539,0.00025047,59741.0,59734.0,0.36]
[1724960517945,0.00025047,59741.0,59735.0,0.083681]
[1724960518246,0.00025047,59741.0,59737.0,0.3608]
[1724960519149,0.00025047,59741.0,59739.0,0.083675]
[1724960519344,0.00025047,59741.0,59737.0,0.3608]
[1724960519739,0.23955047,59741.0,59728.0,0.36]
[1724960519942,0.25211318,59741.0,59728.0,0.36]
[1724960520359,0.25211318,59741.0,59720.0,0.3608]
[1724960520360,0.3608,59737.0,59722.0,0.36]
[1724960520545,0.3608,59737.0,59726.0,0.083693]
[1724960520849,0.3608,59737.0,59722.0,0.36]
[1724960521053,0.3608,59737.0,59730.0,0.08394022]
[1724960521254,0.12496271,59740.0,59730.0,0.08394022]
[1724960521445,0.3608,59736.0,59731.0,0.083687]
[1724960522254,0.12496271,59740.0,59731.0,0.083687]
[1724960522642,0.3608,59736.0,59730.0,0.00025122]
[1724960523138,0.3608,59731.0,59730.0,0.00025122]
[1724960523651,0.18353873,59731.0,59730.0,0.00025122]
[1724960525040,0.18353873,59731.0,59719.0,0.3608]
[1724960525244,0.3608,59726.0,59719.0,0.3608]
[1724960525441,0.2402,59725.0,59719.0,0.3608]
[1724960526950,0.26806503,59725.0,59719.0,0.3608]
[1724960527158,0.28062774,59725.0,59719.0,0.3608]
[1724960527748,0.28062774,59725.0,59716.0,0.00025122]
[1724960527749,0.3608,59721.0,59716.0,0.00025122]
[1724960528254,0.444502,59721.0,59716.0,0.00025122]
[1724960528554,0.083707,59717.0,59716.0,0.00025122]
[1724960528754,0.083707,59717.0,59693.0,0.1184]
[1724960528755,0.083715,59712.0,59696.0,0.083735]
[1724960529056,0.3608,59714.0,59701.0,0.3608]
[1724960529649,0.3608,59709.0,59702.0,0.00025122]
[1724960529961,0.1146,59708.0,59702.0,0.00025122]
[1724960530856,0.1146,59708.0,59702.0,0.08397822]
[1724960531058,0.1146,59708.0,59702.0,0.00025122]
[1724960531254,0.01281393,59713.0,59707.0,0.3608]
[1724960531556,0.01281393,59713.0,59712.0,0.444514]
[1724960531754,0.3608,59739.0,59712.0,1.044514]
[1724960531945,0.239,59731.0,59725.0,0.083695]
[1724960532151,0.1211,59731.0,59725.0,0.083695]
[1724960532759,0.1211,59731.0,59722.0,0.00025122]
[1724960534157,0.1211,59731.0,59723.0,0.083698]
[1724960534358,0.1211,59731.0,59722.0,0.00025122]
[1724960537857,0.1211,59731.0,59722.0,0.08395022]
[1724960538052,0.1211,59731.0,59722.0,0.00025122]
[1724960538957,0.3608,59727.0,59722.0,0.00025122]
[1724960539155,0.083689,59730.0,59722.0,0.00025122]
[1724960540155,0.12928743,59731.0,59722.0,0.00025122]
[1724960540156,0.083692,59728.0,59722.0,0.00025122]
[1724960540959,0.3608,59725.0,59722.0,0.00025122]
[1724960541159,0.1154,59724.0,59722.0,0.00025122]
[1724960541558,0.083703,59720.0,59712.0,0.3608]
[1724960541759,0.3608,59720.0,59707.0,0.444521]
[1724960541955,0.3608,59720.0,59707.0,0.3608]
[1724960542356,0.083704,59719.0,59707.0,0.3608]
[1724960542556,0.083704,59719.0,59707.0,0.36105122]
[1724960542762,0.08395522,59719.0,59707.0,0.36105122]
[1724960543068,0.083706,59718.0,59707.0,0.36105122]
[1724960544159,0.3608,59714.0,59707.0,0.36105122]
[1724960544355,0.1195,59713.0,59707.0,0.36105122]
[1724960545265,0.3608,59708.0,59707.0,0.00025122]
[1724960545661,0.3608,59708.0,59694.0,0.083739]
[1724960545875,0.3608,59703.0,59694.0,0.083739]
[1724960546068,0.3608,59703.0,59693.0,0.3608]
[1724960546564,0.3608,59703.0,59693.0,0.44454]
[1724960547755,0.3608,59703.0,59694.0,0.083739]
[1724960548161,0.3608,59703.0,59693.0,0.3608]
[1724960548762,0.38800792,59703.0,59693.0,0.3608]
[1724960550361,0.48430134,59703.0,59693.0,0.3608]
[1724960550766,0.3608,59698.0,59693.0,0.3608]
[1724960550960,0.1118,59697.0,59693.0,0.3608]
[1724960551163,0.1118,59697.0,59692.0,0.00025122]
[1724960551369,0.3608,59693.0,59692.0,0.00025122]
[1724960551672,0.3608,59693.0,59682.0,0.3608]
[1724960551860,0.1125,59692.0,59682.0,0.3608]
[1724960552265,0.2295,59692.0,59682.0,0.3608]
[1724960552866,0.3608,59683.0,59681.0,0.00025122]
[1724960553061,0.3608,59683.0,59671.0,0.3608]
[1724960553062,0.29,59682.0,59671.0,0.3608]
[1724960553262,0.29,59677.0,59671.0,0.3608]
[1724960553470,0.1229,59682.0,59671.0,0.3608]
[1724960554269,0.3608,59683.0,59676.0,0.3608]
[1724960554467,0.3608,59683.0,59676.0,0.444563]
[1724960555071,0.3608,59683.0,59676.0,0.3608]
[1724960556374,0.38828316,59683.0,59676.0,0.3608]
[1724960556671,0.02748316,59683.0,59682.0,0.083756]
[1724960556871,0.36105122,59688.0,59682.0,0.083756]
[1724960557074,0.36105122,59688.0,59681.0,0.3608]
[1724960557569,0.36105122,59688.0,59681.0,0.444557]
[1724960557779,0.38906879,59688.0,59681.0,0.444557]
[1724960558265,0.38906879,59688.0,59682.0,0.083756]
[1724960559579,0.38906879,59688.0,59683.0,0.083754]
[1724960559776,0.02826879,59688.0,59686.0,0.3608]
[1724960559972,0.02826879,59688.0,59687.0,0.083749]
[1724960560373,0.02826879,59688.0,59665.0,0.3608]
[1724960560374,0.50264,59687.0,59665.0,0.3608]
[1724960560576,1.27906879,59688.0,59665.0,0.4779]
[1724960560577,0.6508,59675.0,59665.0,0.4779]
[1724960560772,0.1116,59674.0,59665.0,0.3608]
[1724960560990,0.3608,59672.0,59657.0,0.083791]
[1724960561170,0.3608,59664.0,59657.0,0.083791]
[1724960561372,0.3608,59664.0,59655.0,0.1171]
[1724960561579,0.29,59664.0,59663.0,0.3608]
[1724960561770,0.29,59664.0,59655.0,0.1171]
[1724960562081,0.00025122,59665.0,59663.0,0.083782]
[1724960562582,0.00025122,59665.0,59664.0,0.083781]
[1724960562982,0.02717406,59665.0,59664.0,0.083781]
[1724960563176,0.00025122,59665.0,59664.0,0.083781]
[1724960565089,0.3608,59680.0,59664.0,1.1028]
[1724960565090,0.02803198,59680.0,59664.0,1.1028]
[1724960565392,0.1168,59684.0,59679.0,0.3608]
[1724960565597,0.22808284,59684.0,59679.0,0.3608]
[1724960565790,0.14432984,59684.0,59679.0,0.3608]
[1724960566491,0.22808384,59684.0,59679.0,0.3608]
[1724960566993,0.14432984,59684.0,59679.0,0.3608]
[1724960567382,0.02752984,59684.0,59681.0,0.083757]
[1724960567588,0.00025122,59687.0,59681.0,0.50264]
[1724960567789,0.00025122,59687.0,59679.0,0.3608]
[1724960568286,0.083759,59680.0,59676.0,0.00025122]
[1724960568489,0.083763,59677.0,59676.0,0.00025122]
[1724960568991,0.12,59678.0,59676.0,0.00025122]
[1724960569195,0.083763,59677.0,59676.0,0.00025122]
[1724960570994,0.12,59678.0,59676.0,0.00025122]
[1724960575495,0.203762,59678.0,59676.0,0.00025122]
[1724960576186,0.12,59678.0,59676.0,0.00025122]
[1724960576996,0.133,59678.0,59676.0,0.00125122]
[1724960578698,0.083763,59677.0,59676.0,0.00125122]
[1724960579892,0.083766,59676.0,59656.0,0.126]
[1724960580202,0.36,59660.0,59656.0,0.126]
[1724960580496,0.7208,59666.0,59656.0,0.126]
[1724960580687,0.3608,59661.0,59656.0,0.126]
[1724960581088,0.00025143,59664.0,59656.0,0.126]
[1724960581499,0.00025143,59664.0,59656.0,0.133]
[1724960582190,0.3608,59661.0,59656.0,0.133]
[1724960582594,0.00025143,59664.0,59656.0,0.133]
[1724960583101,0.00025143,59664.0,59656.0,0.134]
[1724960583290,0.00025143,59664.0,59647.0,0.3608]
[1724960583291,0.083791,59657.0,59647.0,0.3608]
[1724960583491,0.36,59653.0,59640.0,0.4826]
[1724960583795,0.352,59646.0,59640.0,0.3608]
[1724960585797,0.3608,59643.0,59634.0,0.3608]
[1724960586100,0.3608,59643.0,59640.0,0.003]
[1724960586498,0.36,59641.0,59640.0,0.003]
[1724960586797,0.7208,59641.0,59621.0,0.3608]
[1724960586996,0.3608,59632.0,59626.0,0.083835]
[1724960587191,0.3518,59632.0,59626.0,0.083835]
[1724960587595,0.36,59635.0,59627.0,0.083833]
[1724960587787,0.36,59635.0,59628.0,0.083832]
[1724960588402,0.359,59635.0,59628.0,0.083832]
[1724960589296,0.359,59635.0,59629.0,0.08383]
[1724960590201,0.36,59635.0,59629.0,0.08383]
[1724960590405,0.36,59635.0,59626.0,0.3608]
[1724960590406,0.36,59635.0,59630.0,0.083829]
[1724960590706,0.36,59635.0,59626.0,0.3608]
[1724960590707,0.359,59635.0,59626.0,0.3608]
[1724960590906,0.38792038,59635.0,59631.0,0.083827]
[1724960591205,0.38792038,59635.0,59628.0,0.083832]
[1724960591394,0.38792038,59635.0,59629.0,0.08383]
[1724960591597,0.38792038,59635.0,59630.0,0.083828]
[1724960592001,0.29,59632.0,59630.0,0.083828]
[1724960592809,0.29,59632.0,59631.0,0.083828]
[1724960595510,0.001,59635.0,59634.0,0.083823]
[1724960596302,0.001,59635.0,59634.0,1.547703]
[1724960597001,0.001,59635.0,59634.0,0.947703]
[1724960597203,0.001,59635.0,59634.0,0.444623]
[1724960597411,0.001,59635.0,59634.0,0.083823]
[1724960597707,0.001,59635.0,59631.0,0.3608]
[1724960597708,0.3200544,59637.0,59635.0,0.083821]
[1724960598011,0.3200544,59637.0,59636.0,0.083821]
[1724960598212,0.0300544,59637.0,59636.0,0.083821]
[1724960598399,0.0300544,59637.0,59636.0,0.444621]
[1724960599408,0.0340544,59637.0,59636.0,0.444621]
[1724960600805,0.0300544,59637.0,59636.0,0.444621]
[1724960601002,0.0400544,59637.0,59636.0,0.444621]
[1724960602509,0.01025143,59637.0,59636.0,0.444621]
[1724960603305,0.01025143,59637.0,59636.0,1.631482]
[1724960603506,0.2562,59659.0,59651.0,0.083798]
[1724960603710,0.1252,59659.0,59656.0,0.3608]
[1724960603905,0.1316,59667.0,59656.0,0.3608]
[1724960604110,0.3608,59669.0,59663.0,0.3608]
[1724960604111,0.08378,59666.0,59663.0,0.3608]
[1724960604417,0.3608,59669.0,59663.0,0.3608]
[1724960604608,0.083781,59664.0,59663.0,0.3608]
[1724960605210,0.44761,59665.0,59663.0,0.3608]
[1724960605412,0.47730546,59665.0,59664.0,0.083781]
[1724960605713,0.46430546,59665.0,59664.0,0.083781]
[1724960606720,0.46430546,59665.0,59658.0,0.00025143]
[1724960606926,0.46430546,59665.0,59650.0,0.00148]
[1724960606927,0.3608,59661.0,59650.0,0.00148]
[1724960607216,0.29,59651.0,59649.0,0.3608]
[1724960607621,0.29,59655.0,59649.0,0.3608]
[1724960607819,0.444586,59661.0,59649.0,0.3608]
[1724960608015,0.44483743,59661.0,59654.0,0.3608]
[1724960608315,0.29,59659.0,59654.0,0.3608]
[1724960608710,0.1228,59658.0,59654.0,0.3608]
[1724960610530,0.27396718,59658.0,59654.0,0.3608]
[1724960611221,0.28796718,59658.0,59654.0,0.3608]
[1724960611621,0.28796718,59658.0,59649.0,0.3608]
[1724960611622,0.37175718,59658.0,59651.0,0.3608]
[1724960611816,0.3608,59656.0,59651.0,0.3608]
[1724960613222,0.29,59655.0,59651.0,0.3608]
[1724960613824,0.29,59655.0,59651.0,0.3618]
[1724960614021,0.29,59655.0,59651.0,0.001]
[1724960614526,0.304,59655.0,59651.0,0.001]
[1724960616521,0.083795,59654.0,59651.0,0.001]
[1724960617723,0.083798,59652.0,59651.0,0.001]
[1724960618917,0.011,59654.0,59651.0,0.001]
[1724960619317,0.094796,59654.0,59651.0,0.001]
[1724960620326,0.014,59652.0,59651.0,0.001]
[1724960620717,0.014,59654.0,59651.0,0.001]
[1724960622028,0.444598,59652.0,59651.0,0.001]
[1724960622823,0.3608,59652.0,59636.0,0.44462]
[1724960623029,0.3608,59643.0,59636.0,0.3608]
[1724960623230,0.1235,59642.0,59636.0,0.3608]
[1724960623842,0.1235,59642.0,59633.0,0.083824]
[1724960623843,0.6508,59637.0,59633.0,0.083824]
[1724960624141,0.3608,59643.0,59634.0,0.3608]
[1724960624333,0.3608,59643.0,59639.0,0.083816]
[1724960624533,0.004,59642.0,59639.0,0.083816]
[1724960625034,0.3608,59643.0,59639.0,0.083816]
[1724960625337,0.38980277,59643.0,59639.0,0.083816]
[1724960625521,0.02900277,59643.0,59639.0,0.444616]
[1724960625723,0.00025143,59645.0,59643.0,0.08381]
[1724960626327,0.03000018,59645.0,59643.0,0.08381]
[1724960627434,0.04200018,59645.0,59643.0,0.08481]
[1724960627832,0.04200018,59645.0,59643.0,0.001]
[1724960628028,0.3608,59644.0,59643.0,0.001]
[1724960628634,0.05458385,59645.0,59643.0,0.001]
[1724960628845,0.04200018,59645.0,59643.0,0.001]
[1724960629932,0.03000018,59645.0,59644.0,0.083809]
[1724960630839,0.04200018,59645.0,59644.0,0.083809]
[1724960631447,0.04300018,59645.0,59644.0,0.084809]
[1724960632638,0.04300018,59645.0,59644.0,1.477809]
[1724960632835,0.3242,59651.0,59650.0,0.083801]
[1724960633044,0.01258263,59655.0,59654.0,0.083795]
[1724960633444,0.3608,59656.0,59655.0,0.083794]
[1724960633850,0.3897641,59656.0,59655.0,0.083794]
[1724960634648,0.3897641,59656.0,59655.0,0.001]
[1724960634649,0.014,59656.0,59655.0,0.001]
[1724960634944,0.35829816,59665.0,59659.0,0.083787]
[1724960635744,0.47141819,59665.0,59659.0,0.083787]
[1724960636247,0.47141819,59665.0,59661.0,0.083785]
[1724960636248,0.38763819,59665.0,59661.0,0.083785]
[1724960636541,0.35829816,59665.0,59664.0,0.444581]
[1724960636742,0.212948,59688.0,59666.0,0.083778]
[1724960636940,0.212948,59688.0,59672.0,0.29]
[1724960636941,0.01257773,59677.0,59672.0,0.29]
[1724960637145,0.3693513,59684.0,59673.0,0.1254]
[1724960637146,0.3608,59684.0,59673.0,0.1254]
[1724960637542,0.39002346,59684.0,59673.0,0.1254]
[1724960637738,0.39027489,59684.0,59675.0,0.083765]
[1724960639441,0.39027489,59684.0,59673.0,0.12565143]
[1724960639637,0.29,59682.0,59673.0,0.12565143]
[1724960640039,0.29,59682.0,59675.0,0.001]
[1724960640234,0.3608,59678.0,59675.0,0.001]
[1724960640434,0.29,59676.0,59675.0,0.001]
[1724960640845,0.29,59676.0,59673.0,0.00125143]
[1724960641242,0.1191,59675.0,59673.0,0.00125143]
[1724960641548,0.1191,59675.0,59673.0,0.00025143]
[1724960642541,0.14825391,59675.0,59673.0,0.00025143]
[1724960643044,0.14825391,59675.0,59673.0,0.00125143]
[1724960643551,0.14825391,59675.0,59673.0,0.00025143]
[1724960643746,0.14825391,59675.0,59673.0,0.00125143]
[1724960645345,0.02915391,59675.0,59673.0,0.00125143]
[1724960645546,0.3608,59678.0,59673.0,0.00125143]
[1724960645748,0.3608,59678.0,59674.0,0.083766]
[1724960646745,0.01257773,59683.0,59674.0,0.083766]
[1724960646947,0.6508,59675.0,59673.0,0.00125143]
[1724960647547,0.6508,59675.0,59674.0,0.001]
[1724960648144,0.6508,59675.0,59673.0,0.00125143]
[1724960648453,0.734567,59675.0,59673.0,0.00125143]
[1724960648649,0.734567,59675.0,59674.0,0.001]
[1724960648854,1.237287,59675.0,59674.0,0.001]
[1724960649646,1.24986528,59675.0,59674.0,0.001]
[1724960650139,1.27834261,59675.0,59674.0,0.001]
[1724960650344,0.083767,59674.0,59673.0,0.00125143]
[1724960650743,0.083767,59674.0,59651.0,0.3608]
[1724960650744,1.547287,59674.0,59651.0,0.3608]
[1724960650945,0.29,59660.0,59651.0,0.3608]
[1724960652064,0.29,59660.0,59651.0,0.3618]
[1724960653060,0.3608,59654.0,59651.0,0.001]
[1724960653850,0.083798,59652.0,59651.0,0.001]
[1724960654051,0.083799,59651.0,59650.0,0.00025143]
[1724960654259,0.082799,59651.0,59650.0,0.00025143]
[1724960655264,0.082799,59651.0,59650.0,0.00125143]
[1724960655564,0.372799,59651.0,59650.0,0.00125143]
[1724960658164,0.21783533,59651.0,59650.0,0.00125143]
[1724960658971,0.083803,59649.0,59633.0,0.444625]
[1724960659180,0.6508,59641.0,59633.0,0.444625]
[1724960659386,0.6508,59641.0,59634.0,0.083822]
[1724960660879,0.6508,59641.0,59635.0,0.083822]
[1724960664791,0.6508,59641.0,59635.0,0.084822]
[1724960667596,0.68131238,59641.0,59635.0,0.084822]
[1724960669391,0.68131238,59641.0,59638.0,0.083817]
[1724960670082,0.03051238,59641.0,59639.0,0.3608]
[1724960670286,0.444586,59661.0,59642.0,0.083812]
[1724960670590,0.3608,59661.0,59655.0,0.3608]
[1724960670776,0.3608,59661.0,59656.0,0.1321]
[1724960671593,0.3608,59661.0,59653.0,0.00025143]
[1724960671594,0.373791,59658.0,59653.0,0.00025143]
[1724960671887,0.444595,59654.0,59653.0,0.00025143]
[1724960672076,0.45287935,59654.0,59653.0,0.00025143]
[1724960673381,0.45287935,59654.0,59640.0,0.083814]
[1724960673577,0.29,59646.0,59640.0,0.083814]
[1724960676691,0.29,59646.0,59638.0,0.1203]
[1724960676692,0.03011135,59646.0,59638.0,0.1203]
[1724960676994,0.00025143,59649.0,59645.0,0.3608]
[1724960677186,0.00025143,59649.0,59648.0,0.373804]
[1724960677793,0.00025143,59649.0,59648.0,1.476764]
[1724960678486,0.02996339,59653.0,59652.0,0.083798]
[1724960678694,0.29,59664.0,59652.0,0.3608]
[1724960678995,0.3608,59659.0,59655.0,0.083794]
[1724960679193,0.08379,59658.0,59651.0,0.083798]
[1724960679393,0.08379,59658.0,59653.0,0.3608]
[1724960680494,0.08379,59658.0,59653.0,0.3618]